[Event "Titled Tuesday Blitz September 20 Late 2022"]
[White "Perez Ponsa, Federico"]
[Black "Mortazavi, Ali"]
[WhiteFideId "117927"]
[BlackFideId "401323"]
[WhiteElo "2604"]
[BlackElo "2339"]
[Result "1-0"]
[Round "04"]
[TimeControl "180+1"]
[Date "2022.09.20"]
[WhiteClock "0:00:58"]
[BlackClock "0:00:05"]

1. e4 {[%clk 0:03:00]}  c6 {[%clk 0:02:59]} 2. Nf3 {[%clk 0:03:01]}  d5 {[%clk 0:03:00]} 3. d3 {[%clk 0:03:02]}  g6 {[%clk 0:02:58]} 4. Be2 {[%clk 0:02:59]}  Bg7 {[%clk 0:02:58]} 5. O-O {[%clk 0:03:00]}  e5 {[%clk 0:02:58]} 6. Nbd2 {[%clk 0:02:58]}  Ne7 {[%clk 0:02:59]} 7. Re1 {[%clk 0:02:58]}  O-O {[%clk 0:02:59]} 8. Bf1 {[%clk 0:02:58]}  d4 {[%clk 0:02:49]} 9. Nc4 {[%clk 0:02:57]}  b5 {[%clk 0:02:49]} 10. Ncd2 {[%clk 0:02:46]}  Na6 {[%clk 0:02:46]} 11. c3 {[%clk 0:02:43]}  dxc3 {[%clk 0:02:25]} 12. bxc3 {[%clk 0:02:44]}  Nc5 {[%clk 0:02:26]} 13. Ba3 {[%clk 0:02:40]}  Ne6 {[%clk 0:02:22]} 14. Rc1 {[%clk 0:02:33]}  c5 {[%clk 0:02:10]} 15. d4 {[%clk 0:02:33]}  exd4 {[%clk 0:02:06]} 16. cxd4 {[%clk 0:02:32]}  b4 {[%clk 0:02:04]} 17. Bb2 {[%clk 0:02:30]}  cxd4 {[%clk 0:01:50]} 18. Nb3 {[%clk 0:02:30]}  Bb7 {[%clk 0:01:26]} 19. Bc4 {[%clk 0:02:27]}  Rc8 {[%clk 0:01:02]} 20. Bxe6 {[%clk 0:02:21]}  fxe6 {[%clk 0:01:02]} 21. Rxc8 {[%clk 0:02:21]}  Qxc8 {[%clk 0:01:02]} 22. Bxd4 {[%clk 0:02:21]}  Rd8 {[%clk 0:00:51]} 23. Qa1 {[%clk 0:02:21]}  Bh6 {[%clk 0:00:46]} 24. Bxa7 {[%clk 0:02:16]}  Qc3 {[%clk 0:00:35]} 25. Qb1 {[%clk 0:02:05]}  Rc8 {[%clk 0:00:26]} 26. h3 {[%clk 0:01:59]}  Qc2 {[%clk 0:00:24]} 27. Bc5 {[%clk 0:01:59]}  Qxb1 {[%clk 0:00:24]} 28. Rxb1 {[%clk 0:01:59]}  Bxe4 {[%clk 0:00:22]} 29. Re1 {[%clk 0:01:58]}  Bxf3 {[%clk 0:00:22]} 30. Bxe7 {[%clk 0:01:55]}  Bd5 {[%clk 0:00:22]} 31. Bxb4 {[%clk 0:01:52]}  Ra8 {[%clk 0:00:20]} 32. Re2 {[%clk 0:01:45]}  Rb8 {[%clk 0:00:20]} 33. Bd6 {[%clk 0:01:43]}  Rb6 {[%clk 0:00:21]} 34. Bg3 {[%clk 0:01:33]}  Bc4 {[%clk 0:00:19]} 35. Rc2 {[%clk 0:01:33]}  Bd5 {[%clk 0:00:18]} 36. Nc5 {[%clk 0:01:27]}  Rb1+ {[%clk 0:00:17]} 37. Kh2 {[%clk 0:01:27]}  Ra1 {[%clk 0:00:15]} 38. a4 {[%clk 0:01:27]}  Bf8 {[%clk 0:00:15]} 39. Be5 {[%clk 0:01:25]}  Ra3 {[%clk 0:00:15]} 40. Nd7 {[%clk 0:01:25]}  Be7 {[%clk 0:00:12]} 41. Rc8+ {[%clk 0:01:17]}  Kf7 {[%clk 0:00:12]} 42. Nb6 {[%clk 0:01:18]}  Ra2 {[%clk 0:00:08]} 43. Rc7 {[%clk 0:01:17]}  Re2 {[%clk 0:00:07]} 44. Bd6 {[%clk 0:01:15]}  Rxf2 {[%clk 0:00:07]} 45. Rxe7+ {[%clk 0:01:15]}  Kf6 {[%clk 0:00:07]} 46. Nxd5+ {[%clk 0:01:15]}  exd5 {[%clk 0:00:08]} 47. Rxh7 {[%clk 0:01:15]}  d4 {[%clk 0:00:07]} 48. Bc5 {[%clk 0:01:14]}  Rf4 {[%clk 0:00:06]} 49. Rd7 {[%clk 0:01:12]}  d3 {[%clk 0:00:05]} 50. a5 {[%clk 0:01:11]}  Ra4 {[%clk 0:00:05]} 51. Rxd3 {[%clk 0:01:06]}  Rxa5 {[%clk 0:00:05]} 52. Rf3+ {[%clk 0:01:06]}  Kg5 {[%clk 0:00:06]} 53. Be3+ {[%clk 0:01:06]}  Kh5 {[%clk 0:00:06]} 54. Rf8 {[%clk 0:00:58]}  g5 {[%clk 0:00:04]} 55. Rh8+ {[%clk 0:00:59]}  Kg6 {[%clk 0:00:04]} 56. Rg8+ {[%clk 0:01:00]}  Kh5 {[%clk 0:00:05]} 57. Rxg5+ {[%clk 0:00:58]} 1-0


[Site "https://www.chess.com"]

[Event "Titled Tuesday Blitz September 20 Late 2022"]
[White "Rosen, Eric"]
[Black "Caruana, Fabiano"]
[WhiteFideId "2032562"]
[BlackFideId "2020009"]
[WhiteElo "2362"]
[BlackElo "2847"]
[Result "0-1"]
[Round "04"]
[TimeControl "180+1"]
[Date "2022.09.20"]
[WhiteClock "0:00:01"]
[BlackClock "0:00:08"]

1. d4 {[%clk 0:02:51]}  Nf6 {[%clk 0:02:59]} 2. Bf4 {[%clk 0:02:50]}  d6 {[%clk 0:02:59]} 3. Nc3 {[%clk 0:02:50]}  g6 {[%clk 0:02:56]} 4. e4 {[%clk 0:02:49]}  Bg7 {[%clk 0:02:57]} 5. Qd2 {[%clk 0:02:49]}  c6 {[%clk 0:02:55]} 6. f3 {[%clk 0:02:44]}  b5 {[%clk 0:02:38]} 7. O-O-O {[%clk 0:02:39]}  Qa5 {[%clk 0:02:32]} 8. Kb1 {[%clk 0:02:39]}  b4 {[%clk 0:02:31]} 9. Nce2 {[%clk 0:02:39]}  O-O {[%clk 0:02:24]} 10. Bh6 {[%clk 0:02:36]}  e5 {[%clk 0:02:03]} 11. h4 {[%clk 0:02:16]}  Be6 {[%clk 0:02:01]} 12. Nc1 {[%clk 0:02:14]}  exd4 {[%clk 0:01:41]} 13. g4 {[%clk 0:01:45]}  Nbd7 {[%clk 0:01:34]} 14. Bxg7 {[%clk 0:01:30]}  Kxg7 {[%clk 0:01:32]} 15. Qxd4 {[%clk 0:01:31]}  Ne5 {[%clk 0:01:17]} 16. g5 {[%clk 0:01:12]}  Nh5 {[%clk 0:01:16]} 17. Nge2 {[%clk 0:01:01]}  c5 {[%clk 0:01:03]} 18. Qe3 {[%clk 0:01:01]}  Rab8 {[%clk 0:00:52]} 19. f4 {[%clk 0:00:54]}  Nc4 {[%clk 0:00:52]} 20. Qf3 {[%clk 0:00:51]}  Nxb2 {[%clk 0:00:41]} 21. Kxb2 {[%clk 0:00:39]}  c4 {[%clk 0:00:41]} 22. Ka1 {[%clk 0:00:12]}  c3 {[%clk 0:00:34]} 23. Nb3 {[%clk 0:00:12]}  Bxb3 {[%clk 0:00:31]} 24. cxb3 {[%clk 0:00:13]}  Rbc8 {[%clk 0:00:26]} 25. Rc1 {[%clk 0:00:13]}  Rfe8 {[%clk 0:00:19]} 26. Bh3 {[%clk 0:00:13]}  Rc7 {[%clk 0:00:18]} 27. Rc2 {[%clk 0:00:13]}  Rce7 {[%clk 0:00:18]} 28. f5 {[%clk 0:00:08]}  Rxe4 {[%clk 0:00:18]} 29. fxg6 {[%clk 0:00:09]}  hxg6 {[%clk 0:00:17]} 30. Rf1 {[%clk 0:00:09]}  R8e7 {[%clk 0:00:18]} 31. Ng3 {[%clk 0:00:02]}  Re1+ {[%clk 0:00:16]} 32. Rc1 {[%clk 0:00:03]}  Rxc1+ {[%clk 0:00:14]} 33. Rxc1 {[%clk 0:00:03]}  Qa3 {[%clk 0:00:12]} 34. Rb1 {[%clk 0:00:02]}  Kg8 {[%clk 0:00:08]} 35. Nxh5 {[%clk 0:00:02]}  gxh5 {[%clk 0:00:09]} 36. Qf6 {[%clk 0:00:01]}  c2 {[%clk 0:00:08]} 37. Qxe7 {[%clk 0:00:01]}  c1=Q {[%clk 0:00:08]} 0-1


[Site "https://www.chess.com"]

[Event "Titled Tuesday Blitz September 20 Late 2022"]
[White "Salem, A.R. Saleh"]
[Black "Godzwon, Iwo"]
[WhiteFideId "9301348"]
[BlackFideId "21802483"]
[WhiteElo "2628"]
[BlackElo "2201"]
[Result "1-0"]
[Round "04"]
[TimeControl "180+1"]
[Date "2022.09.20"]
[WhiteClock "0:02:29"]
[BlackClock "0:01:01"]

1. d4 {[%clk 0:03:00]}  Nf6 {[%clk 0:02:55]} 2. c4 {[%clk 0:03:01]}  e6 {[%clk 0:02:55]} 3. Nc3 {[%clk 0:03:02]}  Bb4 {[%clk 0:02:55]} 4. a3 {[%clk 0:03:02]}  Bxc3+ {[%clk 0:02:54]} 5. bxc3 {[%clk 0:03:03]}  O-O {[%clk 0:02:41]} 6. f3 {[%clk 0:03:04]}  c5 {[%clk 0:01:56]} 7. e4 {[%clk 0:03:04]}  d5 {[%clk 0:01:42]} 8. cxd5 {[%clk 0:03:00]}  exd5 {[%clk 0:01:42]} 9. e5 {[%clk 0:03:01]}  Nfd7 {[%clk 0:01:43]} 10. f4 {[%clk 0:03:00]}  Nc6 {[%clk 0:01:30]} 11. Nf3 {[%clk 0:03:01]}  Qa5 {[%clk 0:01:31]} 12. Bd2 {[%clk 0:03:01]}  b6 {[%clk 0:01:31]} 13. Bd3 {[%clk 0:02:59]}  c4 {[%clk 0:01:16]} 14. Bxh7+ {[%clk 0:02:55]}  Kxh7 {[%clk 0:01:16]} 15. Ng5+ {[%clk 0:02:56]}  Kg6 {[%clk 0:01:17]} 16. f5+ {[%clk 0:02:54]}  Kh6 {[%clk 0:01:14]} 17. Qg4 {[%clk 0:02:30]}  g6 {[%clk 0:01:01]} 18. Qh4+ {[%clk 0:02:29]} 1-0


[Site "https://www.chess.com"]

[Event "Titled Tuesday Blitz September 20 Late 2022"]
[White "Svane, Rasmus"]
[Black "Shimanov, Aleksandr"]
[WhiteFideId "4657101"]
[BlackFideId "4198603"]
[WhiteElo "2674"]
[BlackElo "2605"]
[Result "1/2-1/2"]
[Round "04"]
[TimeControl "180+1"]
[Date "2022.09.20"]
[WhiteClock "0:00:05"]
[BlackClock "0:00:03"]

1. Nf3 {[%clk 0:03:00]}  d5 {[%clk 0:02:58]} 2. g3 {[%clk 0:03:00]}  Nd7 {[%clk 0:02:58]} 3. d4 {[%clk 0:03:00]}  Ngf6 {[%clk 0:02:57]} 4. Bg2 {[%clk 0:03:00]}  e6 {[%clk 0:02:57]} 5. O-O {[%clk 0:02:56]}  c6 {[%clk 0:02:56]} 6. c4 {[%clk 0:02:54]}  dxc4 {[%clk 0:02:55]} 7. a4 {[%clk 0:02:52]}  a5 {[%clk 0:02:54]} 8. Na3 {[%clk 0:02:47]}  Bxa3 {[%clk 0:02:51]} 9. Rxa3 {[%clk 0:02:48]}  O-O {[%clk 0:02:50]} 10. Qc2 {[%clk 0:02:41]}  b5 {[%clk 0:02:49]} 11. Bg5 {[%clk 0:01:57]}  Qb6 {[%clk 0:02:39]} 12. b3 {[%clk 0:01:22]}  c3 {[%clk 0:02:34]} 13. axb5 {[%clk 0:01:18]}  cxb5 {[%clk 0:02:32]} 14. b4 {[%clk 0:01:18]}  a4 {[%clk 0:02:19]} 15. Bxf6 {[%clk 0:00:45]}  Nxf6 {[%clk 0:02:18]} 16. Qxc3 {[%clk 0:00:45]}  Bb7 {[%clk 0:02:12]} 17. Qc5 {[%clk 0:00:45]}  Qa6 {[%clk 0:02:12]} 18. Ne5 {[%clk 0:00:38]}  Rac8 {[%clk 0:02:10]} 19. Qe7 {[%clk 0:00:38]}  Bxg2 {[%clk 0:02:10]} 20. Kxg2 {[%clk 0:00:39]}  Nd5 {[%clk 0:02:09]} 21. Qh4 {[%clk 0:00:37]}  Qb7 {[%clk 0:02:03]} 22. e4 {[%clk 0:00:33]}  Nxb4 {[%clk 0:01:56]} 23. Rb1 {[%clk 0:00:24]}  Nc6 {[%clk 0:01:32]} 24. Rxa4 {[%clk 0:00:23]}  Nxe5 {[%clk 0:01:32]} 25. dxe5 {[%clk 0:00:23]}  Rc5 {[%clk 0:01:25]} 26. Qf4 {[%clk 0:00:23]}  Qc7 {[%clk 0:01:19]} 27. Rab4 {[%clk 0:00:23]}  Rb8 {[%clk 0:01:19]} 28. h4 {[%clk 0:00:17]}  h6 {[%clk 0:01:19]} 29. Qe3 {[%clk 0:00:13]}  Rxe5 {[%clk 0:01:18]} 30. f4 {[%clk 0:00:11]}  Rc5 {[%clk 0:01:19]} 31. Kh3 {[%clk 0:00:11]}  Qc6 {[%clk 0:01:17]} 32. Qd3 {[%clk 0:00:10]}  Rc3 {[%clk 0:01:11]} 33. Qd4 {[%clk 0:00:09]}  Ra8 {[%clk 0:01:07]} 34. Rxb5 {[%clk 0:00:08]}  Raa3 {[%clk 0:01:08]} 35. Rb8+ {[%clk 0:00:08]}  Kh7 {[%clk 0:01:08]} 36. Rg1 {[%clk 0:00:08]}  Rd3 {[%clk 0:01:00]} 37. Qb4 {[%clk 0:00:05]}  h5 {[%clk 0:00:47]} 38. Rb6 {[%clk 0:00:02]}  Qc2 {[%clk 0:00:45]} 39. Rb5 {[%clk 0:00:02]}  Ra2 {[%clk 0:00:08]} 40. Rxh5+ {[%clk 0:00:02]}  Kg6 {[%clk 0:00:08]} 41. Rg5+ {[%clk 0:00:02]}  Kh6 {[%clk 0:00:09]} 42. Kg4 {[%clk 0:00:01]}  Qe2+ {[%clk 0:00:09]} 43. Kh3 {[%clk 0:00:02]}  Qh2+ {[%clk 0:00:09]} 44. Kg4 {[%clk 0:00:03]}  Qxg1 {[%clk 0:00:10]} 45. Rh5+ {[%clk 0:00:03]}  Kg6 {[%clk 0:00:09]} 46. Rg5+ {[%clk 0:00:04]}  Kh7 {[%clk 0:00:09]} 47. Rh5+ {[%clk 0:00:04]}  Kg6 {[%clk 0:00:10]} 48. Rg5+ {[%clk 0:00:05]}  Kh6 {[%clk 0:00:03]} 49. Rh5+ {[%clk 0:00:05]}  Kg6 {[%clk 0:00:03]} 1/2-1/2


[Site "https://www.chess.com"]

[Event "Titled Tuesday Blitz September 20 Late 2022"]
[White "Tari, Aryan"]
[Black "Korchmar, Vasiliy"]
[WhiteFideId "1510045"]
[BlackFideId "24131750"]
[WhiteElo "2612"]
[BlackElo "2370"]
[Result "0-1"]
[Round "04"]
[TimeControl "180+1"]
[Date "2022.09.20"]
[WhiteClock "0:00:02"]
[BlackClock "0:00:21"]

1. e4 {[%clk 0:02:56]}  c5 {[%clk 0:02:59]} 2. Nc3 {[%clk 0:02:56]}  d6 {[%clk 0:02:59]} 3. f4 {[%clk 0:02:55]}  Nc6 {[%clk 0:02:56]} 4. Nf3 {[%clk 0:02:54]}  Nf6 {[%clk 0:02:53]} 5. Bb5 {[%clk 0:02:55]}  Bd7 {[%clk 0:02:53]} 6. O-O {[%clk 0:02:44]}  e6 {[%clk 0:02:52]} 7. e5 {[%clk 0:02:23]}  Ng4 {[%clk 0:02:51]} 8. Ng5 {[%clk 0:02:09]}  Nh6 {[%clk 0:02:19]} 9. Bxc6 {[%clk 0:01:45]}  Bxc6 {[%clk 0:02:19]} 10. Qe1 {[%clk 0:01:35]}  dxe5 {[%clk 0:01:57]} 11. Qxe5 {[%clk 0:01:24]}  Nf5 {[%clk 0:01:55]} 12. d3 {[%clk 0:01:07]}  Be7 {[%clk 0:01:46]} 13. Qe2 {[%clk 0:01:03]}  O-O {[%clk 0:01:41]} 14. Nge4 {[%clk 0:01:03]}  b5 {[%clk 0:01:27]} 15. Kh1 {[%clk 0:01:01]}  b4 {[%clk 0:01:19]} 16. Nd1 {[%clk 0:01:01]}  Rc8 {[%clk 0:00:57]} 17. Ne3 {[%clk 0:00:58]}  Nd4 {[%clk 0:00:54]} 18. Qd1 {[%clk 0:00:45]}  Re8 {[%clk 0:00:51]} 19. Nc4 {[%clk 0:00:44]}  Bd5 {[%clk 0:00:43]} 20. Ne5 {[%clk 0:00:31]}  Bf8 {[%clk 0:00:35]} 21. Be3 {[%clk 0:00:31]}  Nf5 {[%clk 0:00:33]} 22. Bg1 {[%clk 0:00:31]}  Qh4 {[%clk 0:00:31]} 23. Qe1 {[%clk 0:00:13]}  Qh5 {[%clk 0:00:31]} 24. Nf3 {[%clk 0:00:07]}  c4 {[%clk 0:00:29]} 25. Rd1 {[%clk 0:00:06]}  cxd3 {[%clk 0:00:29]} 26. cxd3 {[%clk 0:00:07]}  Rc2 {[%clk 0:00:30]} 27. Rf2 {[%clk 0:00:05]}  Rec8 {[%clk 0:00:22]} 28. Rdd2 {[%clk 0:00:03]}  Bxe4 {[%clk 0:00:20]} 29. Rxc2 {[%clk 0:00:02]}  Ng3# {[%clk 0:00:21]} 0-1


[Site "https://www.chess.com"]

[Event "Titled Tuesday Blitz September 20 Late 2022"]
[White "Xiong, Jeffery"]
[Black "Panarin, Mikhail"]
[WhiteFideId "2047640"]
[BlackFideId "4153251"]
[WhiteElo "2714"]
[BlackElo "2495"]
[Result "1-0"]
[Round "04"]
[TimeControl "180+1"]
[Date "2022.09.20"]
[WhiteClock "0:01:23"]
[BlackClock "0:00:03"]

1. e4 {[%clk 0:03:00]}  c5 {[%clk 0:02:59]} 2. Nf3 {[%clk 0:03:00]}  e6 {[%clk 0:03:00]} 3. c3 {[%clk 0:02:59]}  d5 {[%clk 0:03:00]} 4. exd5 {[%clk 0:03:00]}  Qxd5 {[%clk 0:03:00]} 5. Na3 {[%clk 0:02:59]}  Nc6 {[%clk 0:02:58]} 6. d4 {[%clk 0:02:59]}  Nf6 {[%clk 0:02:57]} 7. Bg5 {[%clk 0:02:42]}  Bd7 {[%clk 0:01:52]} 8. Nb5 {[%clk 0:02:17]}  Rc8 {[%clk 0:01:48]} 9. dxc5 {[%clk 0:02:07]}  Bxc5 {[%clk 0:01:33]} 10. Bxf6 {[%clk 0:02:07]}  Qxd1+ {[%clk 0:01:31]} 11. Rxd1 {[%clk 0:02:08]}  gxf6 {[%clk 0:01:32]} 12. Nd6+ {[%clk 0:02:08]}  Bxd6 {[%clk 0:01:32]} 13. Rxd6 {[%clk 0:02:09]}  Ke7 {[%clk 0:01:31]} 14. Rd2 {[%clk 0:02:10]}  Rhg8 {[%clk 0:01:13]} 15. g3 {[%clk 0:02:10]}  Na5 {[%clk 0:01:13]} 16. Be2 {[%clk 0:02:09]}  Nc4 {[%clk 0:01:04]} 17. Bxc4 {[%clk 0:02:08]}  Rxc4 {[%clk 0:01:05]} 18. O-O {[%clk 0:02:08]}  e5 {[%clk 0:01:00]} 19. Rfd1 {[%clk 0:02:06]}  Bg4 {[%clk 0:00:57]} 20. Rd3 {[%clk 0:01:56]}  Rc7 {[%clk 0:00:31]} 21. Re1 {[%clk 0:01:55]}  Be6 {[%clk 0:00:29]} 22. Nd2 {[%clk 0:01:51]}  b5 {[%clk 0:00:21]} 23. f4 {[%clk 0:01:49]}  exf4 {[%clk 0:00:17]} 24. Kf2 {[%clk 0:01:49]}  fxg3+ {[%clk 0:00:18]} 25. hxg3 {[%clk 0:01:50]}  Rc5 {[%clk 0:00:16]} 26. Nb3 {[%clk 0:01:46]}  Rf5+ {[%clk 0:00:16]} 27. Rf3 {[%clk 0:01:41]}  Re5 {[%clk 0:00:14]} 28. Nd4 {[%clk 0:01:40]}  Rxe1 {[%clk 0:00:13]} 29. Kxe1 {[%clk 0:01:40]}  a6 {[%clk 0:00:10]} 30. b3 {[%clk 0:01:38]}  h5 {[%clk 0:00:06]} 31. Kf2 {[%clk 0:01:38]}  Bd7 {[%clk 0:00:03]} 32. Re3+ {[%clk 0:01:36]}  Kd6 {[%clk 0:00:03]} 33. Re4 {[%clk 0:01:36]}  Rg5 {[%clk 0:00:03]} 34. Rf4 {[%clk 0:01:36]}  Ke7 {[%clk 0:00:03]} 35. c4 {[%clk 0:01:23]}  bxc4 {[%clk 0:00:03]} 36. bxc4 {[%clk 0:01:24]}  Ra5 {[%clk 0:00:03]} 37. Re4+ {[%clk 0:01:22]}  Kd6 {[%clk 0:00:03]} 38. Re2 {[%clk 0:01:23]}  Ra4 {[%clk 0:00:03]} 39. Rc2 {[%clk 0:01:23]} 1-0


[Site "https://www.chess.com"]

[Event "Titled Tuesday Blitz September 20 Late 2022"]
[White "Zhigalko, Sergei"]
[Black "Vasquez Schroeder, Rodrigo"]
[WhiteFideId "13502956"]
[BlackFideId "3400042"]
[WhiteElo "2662"]
[BlackElo "2577"]
[Result "0-1"]
[Round "04"]
[TimeControl "180+1"]
[Date "2022.09.20"]
[WhiteClock "0:00:04"]
[BlackClock "0:00:38"]

1. e4 {[%clk 0:03:00]}  c6 {[%clk 0:03:00]} 2. d4 {[%clk 0:03:01]}  d5 {[%clk 0:03:00]} 3. e5 {[%clk 0:03:01]}  Bf5 {[%clk 0:03:00]} 4. Nf3 {[%clk 0:03:02]}  e6 {[%clk 0:03:00]} 5. Be2 {[%clk 0:03:03]}  Ne7 {[%clk 0:03:01]} 6. O-O {[%clk 0:03:04]}  Ng6 {[%clk 0:03:01]} 7. Ne1 {[%clk 0:03:01]}  h5 {[%clk 0:02:58]} 8. Bd3 {[%clk 0:03:02]}  Nh4 {[%clk 0:02:52]} 9. Nd2 {[%clk 0:02:57]}  Bxd3 {[%clk 0:02:43]} 10. Nxd3 {[%clk 0:02:56]}  Nf5 {[%clk 0:02:44]} 11. Nf3 {[%clk 0:02:53]}  Qb6 {[%clk 0:02:40]} 12. c3 {[%clk 0:02:51]}  c5 {[%clk 0:02:40]} 13. dxc5 {[%clk 0:02:39]}  Bxc5 {[%clk 0:02:40]} 14. Bg5 {[%clk 0:02:18]}  Nc6 {[%clk 0:02:30]} 15. Qd2 {[%clk 0:02:17]}  Be7 {[%clk 0:02:28]} 16. Rfe1 {[%clk 0:02:12]}  Qc7 {[%clk 0:02:21]} 17. Rad1 {[%clk 0:02:10]}  Rd8 {[%clk 0:02:15]} 18. h3 {[%clk 0:02:05]}  h4 {[%clk 0:02:02]} 19. Qf4 {[%clk 0:02:03]}  Bxg5 {[%clk 0:01:58]} 20. Nxg5 {[%clk 0:01:59]}  a6 {[%clk 0:01:48]} 21. Qg4 {[%clk 0:01:44]}  Qe7 {[%clk 0:01:37]} 22. Nf4 {[%clk 0:01:40]}  g6 {[%clk 0:01:27]} 23. c4 {[%clk 0:01:15]}  d4 {[%clk 0:01:22]} 24. a3 {[%clk 0:00:44]}  a5 {[%clk 0:01:22]} 25. Nd3 {[%clk 0:00:44]}  Kf8 {[%clk 0:01:09]} 26. Ne4 {[%clk 0:00:25]}  Kg7 {[%clk 0:01:08]} 27. Rb1 {[%clk 0:00:23]}  Qc7 {[%clk 0:01:01]} 28. Qf4 {[%clk 0:00:17]}  a4 {[%clk 0:00:57]} 29. Nec5 {[%clk 0:00:16]}  Ra8 {[%clk 0:00:55]} 30. Qg5 {[%clk 0:00:15]}  Qd8 {[%clk 0:00:52]} 31. Qxd8 {[%clk 0:00:10]}  Nxd8 {[%clk 0:00:52]} 32. Nxb7 {[%clk 0:00:11]}  Nxb7 {[%clk 0:00:52]} 33. c5 {[%clk 0:00:04]}  Rhc8 {[%clk 0:00:49]} 34. Rec1 {[%clk 0:00:05]}  Na5 {[%clk 0:00:45]} 35. Rc2 {[%clk 0:00:03]}  Rc7 {[%clk 0:00:44]} 36. Kh2 {[%clk 0:00:01]}  Rb8 {[%clk 0:00:44]} 37. Re1 {[%clk 0:00:01]}  Rb5 {[%clk 0:00:43]} 38. Re4 {[%clk 0:00:02]}  Nb3 {[%clk 0:00:43]} 39. c6 {[%clk 0:00:02]}  Na5 {[%clk 0:00:42]} 40. Nb4 {[%clk 0:00:03]}  Kf8 {[%clk 0:00:38]} 41. Re1 {[%clk 0:00:03]}  Ke7 {[%clk 0:00:38]} 42. Rec1 {[%clk 0:00:03]}  Kd8 {[%clk 0:00:37]} 43. f4 {[%clk 0:00:03]}  Kc8 {[%clk 0:00:36]} 44. Rd2 {[%clk 0:00:02]}  Nb3 {[%clk 0:00:37]} 45. Rcd1 {[%clk 0:00:02]}  Nxd2 {[%clk 0:00:37]} 46. Rxd2 {[%clk 0:00:03]}  Rxb4 {[%clk 0:00:37]} 47. axb4 {[%clk 0:00:03]}  Rxc6 {[%clk 0:00:38]} 48. g4 {[%clk 0:00:04]}  hxg3+ {[%clk 0:00:38]} 0-1


[Site "https://www.chess.com"]

[Event "Titled Tuesday Blitz September 20 Late 2022"]
[White "Adewumi, Tanitoluwa"]
[Black "Papasimakopoulos, Alexandros"]
[WhiteFideId "30966396"]
[BlackFideId "4244125"]
[WhiteElo "2563"]
[BlackElo "2357"]
[Result "1-0"]
[Round "05"]
[TimeControl "180+1"]
[Date "2022.09.20"]
[WhiteClock "0:00:06"]
[BlackClock "0:01:02"]

1. e4 {[%clk 0:03:00]}  e6 {[%clk 0:02:51]} 2. d4 {[%clk 0:02:56]}  d5 {[%clk 0:02:52]} 3. Nc3 {[%clk 0:02:55]}  Bb4 {[%clk 0:02:51]} 4. Ne2 {[%clk 0:02:52]}  Nc6 {[%clk 0:02:51]} 5. a3 {[%clk 0:02:50]}  Ba5 {[%clk 0:02:51]} 6. b4 {[%clk 0:02:46]}  Bb6 {[%clk 0:02:51]} 7. b5 {[%clk 0:02:43]}  Na5 {[%clk 0:02:49]} 8. exd5 {[%clk 0:02:40]}  exd5 {[%clk 0:02:49]} 9. Nf4 {[%clk 0:02:40]}  Ne7 {[%clk 0:02:47]} 10. Be3 {[%clk 0:02:33]}  O-O {[%clk 0:02:44]} 11. Bd3 {[%clk 0:02:30]}  c6 {[%clk 0:02:19]} 12. O-O {[%clk 0:02:21]}  Bf5 {[%clk 0:02:16]} 13. Be2 {[%clk 0:02:05]}  Re8 {[%clk 0:02:10]} 14. Na4 {[%clk 0:01:00]}  Bc7 {[%clk 0:02:04]} 15. Nc5 {[%clk 0:00:54]}  Qd6 {[%clk 0:01:55]} 16. g3 {[%clk 0:00:37]}  b6 {[%clk 0:01:51]} 17. Na6 {[%clk 0:00:34]}  Nc4 {[%clk 0:01:37]} 18. Bxc4 {[%clk 0:00:25]}  dxc4 {[%clk 0:01:36]} 19. Nxc7 {[%clk 0:00:25]}  Qxc7 {[%clk 0:01:36]} 20. bxc6 {[%clk 0:00:26]}  Qxc6 {[%clk 0:01:34]} 21. d5 {[%clk 0:00:26]}  Qd6 {[%clk 0:01:34]} 22. Qd4 {[%clk 0:00:25]}  Bxc2 {[%clk 0:01:29]} 23. Qxc4 {[%clk 0:00:17]}  Rac8 {[%clk 0:01:29]} 24. Qa6 {[%clk 0:00:16]}  g5 {[%clk 0:01:17]} 25. Nh5 {[%clk 0:00:14]}  Qg6 {[%clk 0:01:17]} 26. g4 {[%clk 0:00:09]}  Nxd5 {[%clk 0:01:15]} 27. Bd4 {[%clk 0:00:09]}  Bd3 {[%clk 0:01:09]} 28. Qb7 {[%clk 0:00:08]}  Rc4 {[%clk 0:01:08]} 29. Qxd5 {[%clk 0:00:07]}  Bxf1 {[%clk 0:01:04]} 30. Nf6+ {[%clk 0:00:06]}  Kf8 {[%clk 0:01:05]} 31. Qd6+ {[%clk 0:00:06]}  Kg7 {[%clk 0:01:01]} 32. Nxe8+ {[%clk 0:00:06]}  Kh6 {[%clk 0:01:02]} 33. Qf8+ {[%clk 0:00:05]}  Qg7 {[%clk 0:01:02]} 34. Qxg7# {[%clk 0:00:06]} 1-0


[Site "https://www.chess.com"]